bitfinex/quotes_ETHUSD_20250930
["timestamp","ask_amount","ask_price","bid_price","bid_amount"]
[1759237587047,2.91823175,4159.9,4159.8,0.792]
[1759237587250,2.40391435,4159.9,4159.8,0.792]
[1759237587436,2.91823175,4159.9,4159.8,0.792]
[1759237587626,2.40391435,4159.9,4159.8,0.792]
[1759237587827,2.91823175,4159.9,4159.8,0.792]
[1759237588054,2.40391435,4159.9,4159.8,0.792]
[1759237588258,2.91823175,4159.9,4159.8,0.792]
[1759237588563,2.40391435,4159.9,4159.8,0.792]
[1759237588730,2.91823175,4159.9,4159.8,0.792]
[1759237588926,2.40391435,4159.9,4159.8,0.792]
[1759237589558,2.91823175,4159.9,4159.8,0.792]
[1759237589760,2.40391435,4159.9,4159.8,0.792]
[1759237589940,2.40413511,4159.5,4159.4,0.792]
[1759237590349,2.40420019,4159.4,4159.0,0.002]
[1759237590529,2.40420019,4159.4,4159.2,0.792]
[1759237590530,2.40419291,4159.4,4159.2,0.792]
[1759237590732,2.64389291,4159.4,4159.3,18.084]
[1759237591863,2.64389291,4159.4,4159.3,18.083]
[1759237592435,2.40419291,4159.4,4159.3,18.083]
[1759237592969,5.19589082,4160.0,4159.4,0.792]
[1759237592970,2.40413511,4159.5,4159.4,0.792]
[1759237593458,2.40413511,4159.5,4159.4,3.582]
[1759237594428,2.40413511,4159.5,4159.4,2.79]
[1759237594631,2.40419291,4159.4,4159.3,14.5]
[1759237594852,2.91851031,4159.4,4159.3,14.5]
[1759237595049,8.78031031,4159.4,4159.3,14.5]
[1759237595262,2.40436632,4159.1,4159.0,0.002]
[1759237595564,2.52436632,4159.1,4159.0,0.002]
[1759237595864,4.60196125,4159.1,4159.0,0.002]
[1759237596157,4.08764385,4159.1,4159.0,0.002]
[1759237598666,3.29484385,4159.1,4159.0,0.002]
[1759237598856,2.40436632,4159.1,4159.0,0.002]
[1759237599462,2.64406632,4159.1,4159.0,0.002]
[1759237600358,2.40436632,4159.1,4159.0,0.002]
[1759237601463,0.5143174,4159.3,4159.0,0.5922]
[1759237601645,2.40431022,4159.2,4159.0,0.7674]
[1759237601844,4.80426593,4159.3,4159.0,0.7674]
[1759237602064,2.40431028,4159.2,4159.0,0.7674]
[1759237602389,2.4,4159.4,4159.1,14.5]
[1759237602596,0.51346049,4159.8,4159.2,0.792]
[1759237602769,2.40408952,4159.6,4159.4,0.792]
[1759237602964,2.40413511,4159.5,4159.4,0.792]
[1759237603176,2.40409679,4159.6,4159.4,15.292]
[1759237603568,2.40413511,4159.5,4159.4,15.292]
[1759237605189,2.63883511,4159.5,4159.4,15.292]
[1759237605715,3.09023511,4159.5,4159.4,14.5]
[1759237606256,3.98162985,4159.5,4159.4,14.5]
[1759237606784,3.29968674,4159.6,4159.4,14.5]
[1759237606950,2.40413511,4159.5,4159.4,14.5]
[1759237607156,0.63368674,4159.9,4159.4,14.5]
[1759237607358,2.785,4159.9,4159.6,0.12]
[1759237607558,2.40384706,4160.0,4159.7,1.2246]
[1759237607773,0.001,4160.3,4159.7,0.792]
[1759237607974,2.40396172,4159.8,4159.5,3.577]
[1759237608260,2.40396172,4159.8,4159.5,4.0096]
[1759237608452,2.40396172,4159.8,4159.5,4.1848]
[1759237608677,5.18881439,4160.1,4159.7,0.792]
[1759237608888,2.785,4160.1,4159.7,1.2246]
[1759237609285,2.40391332,4159.9,4159.7,1.2246]
[1759237609465,2.40394511,4159.9,4159.7,1.2246]
[1759237609789,0.001,4160.3,4159.8,1.3998]
[1759237609992,2.401,4160.3,4159.8,1.3998]
[1759237610170,4.80468234,4160.3,4159.9,0.4326]
[1759237610374,2.9185473,4160.3,4159.8,0.792]
[1759237610575,2.40468234,4160.3,4159.9,0.6078]
[1759237610892,0.001,4160.3,4160.0,0.81603846]
[1759237611064,0.001,4160.3,4160.1,0.4326]
[1759237611260,0.001,4160.3,4160.2,0.792]
[1759237611770,0.001,4160.3,4160.2,15.292]
[1759237612590,2.40467281,4160.3,4160.2,15.292]
[1759237612792,0.001,4160.3,4160.2,15.292]
[1759237613288,0.001,4160.3,4160.2,14.5]
[1759237613289,3.33123373,4160.3,4160.2,14.5]
[1759237613492,5.73123373,4160.3,4160.2,14.5]
[1759237614389,8.51723373,4160.3,4160.2,14.5]
[1759237614691,9.03109869,4160.3,4160.2,14.5]
[1759237616396,5.94132588,4160.3,4159.7,0.792]
[1759237616574,5.187,4160.3,4159.7,0.792]
[1759237616774,2.40373058,4160.2,4159.9,0.792]
[1759237617076,2.40373058,4160.2,4160.1,0.792]
[1759237617273,4.80468624,4160.3,4160.1,0.792]
[1759237617594,0.001,4160.3,4160.1,0.12]
[1759237617997,0.001,4160.3,4160.2,15.292]
[1759237618864,0.001,4160.3,4160.2,18.6838]
[1759237619063,0.001,4160.3,4160.2,18.8038]
[1759237620978,2.40467281,4160.3,4160.2,18.195]
[1759237621297,2.40467281,4160.3,4160.2,15.412]
[1759237621888,2.63937281,4160.3,4160.2,15.412]
[1759237623698,2.40467281,4160.3,4160.2,15.412]
[1759237623903,0.001,4160.3,4160.2,15.412]
[1759237624195,2.40467281,4160.3,4160.2,15.412]
[1759237624394,0.001,4160.3,4160.2,15.412]
[1759237624696,0.001,4160.3,4160.2,18.6266]
[1759237625101,0.001,4160.3,4160.2,18.8018]
[1759237625601,0.001,4160.3,4160.2,21.20553058]
[1759237627502,0.001,4160.3,4160.2,23.56646562]
[1759237629018,0.001,4160.3,4160.2,21.16273504]
[1759237629221,0.001,4160.3,4160.2,23.56646562]
[1759237637519,0.001,4160.3,4160.2,25.84646562]
[1759237639551,0.001,4160.3,4160.2,23.06216562]
[1759237639834,0.001,4160.3,4160.2,25.83716562]
[1759237639985,0.001,4160.3,4160.2,16.86093504]
[1759237640186,0.2403,4160.3,4160.2,19.63693504]
[1759237640420,0.2403,4160.3,4160.2,20.42893504]
[1759237640587,0.2403,4160.3,4160.2,16.86093504]
[1759237640910,0.2403,4160.3,4160.2,20.42893504]
[1759237641084,0.2403,4160.3,4160.2,19.63693504]
[1759237641285,3.11527281,4160.3,4160.2,14.5]
[1759237641485,0.7116,4160.3,4160.2,14.5]
[1759237642504,0.7116,4160.3,4160.2,15.292]
[1759237642690,3.11527281,4160.3,4160.2,15.292]
[1759237643656,3.11527281,4160.3,4160.2,18.068]
[1759237644428,3.11527281,4160.3,4160.2,15.292]
[1759237644630,0.7116,4160.3,4160.2,18.067]
[1759237645043,3.11527281,4160.3,4160.2,18.067]
[1759237646058,0.001,4160.3,4160.2,22.27743058]
[1759237646266,0.001,4160.3,4160.2,22.88293058]
[1759237647084,0.001,4160.3,4160.2,22.27743058]
[1759237647561,0.001,4160.3,4160.2,22.39743058]
[1759237647713,0.001,4160.3,4160.2,17.2187]
[1759237647919,0.001,4160.3,4160.2,19.9937]
[1759237648160,0.001,4160.3,4160.2,22.39743058]
[1759237649819,0.001,4160.3,4160.2,17.2187]
[1759237650020,0.001,4160.3,4160.2,19.9927]
[1759237650221,0.001,4160.3,4160.2,22.39643058]
[1759237650674,2.40467281,4160.3,4160.2,15.412]
[1759237650906,0.7116,4160.3,4159.8,2.774]
[1759237651198,0.7106,4160.2,4159.9,14.5]
[1759237651408,0.7106,4160.1,4159.9,14.5]
[1759237651696,0.001,4160.3,4160.0,0.792]
[1759237651697,2.40472154,4160.3,4160.0,0.792]
[1759237651860,2.4037361,4160.2,4159.8,2.774]
[1759237652098,0.001,4160.3,4159.8,2.774]
[1759237652099,0.2393,4160.1,4159.8,2.774]
[1759237652253,0.4723,4160.3,4159.9,0.792]
[1759237652598,0.001,4160.3,4160.1,3.19578532]
[1759237652796,0.001,4160.3,4159.9,0.7871]
[1759237652797,0.001,4160.3,4160.2,20.49376788]
[1759237653001,0.001,4160.3,4160.2,20.46973058]
[1759237653201,0.001,4160.3,4160.2,21.07523058]
[1759237653695,0.001,4160.3,4160.2,20.90003058]
[1759237654081,0.001,4160.3,4160.2,21.07523058]
[1759237654480,0.001,4160.3,4160.2,23.42313703]
[1759237656069,0.001,4160.3,4160.2,17.63990645]
[1759237656269,0.2403,4160.3,4160.2,14.5]
[1759237656504,0.2403,4160.3,4160.2,17.278]
[1759237656798,0.001,4160.3,4160.2,20.47373058]
[1759237657757,0.001,4160.3,4160.2,18.071]
[1759237657984,0.7116,4160.3,4160.2,18.071]
[1759237659775,0.7116,4160.3,4160.2,15.292]
[1759237659972,3.11527281,4160.3,4160.2,15.292]
[1759237660318,3.66715035,4160.3,4160.2,14.5]
[1759237660474,3.66715035,4160.3,4160.2,15.292]
[1759237660671,3.66715035,4160.3,4160.1,0.002]
[1759237660672,2.40373058,4160.2,4160.1,0.002]
[1759237660872,4.80373058,4160.2,4160.1,0.002]
[1759237661098,6.02931778,4160.2,4160.1,0.002]
[1759237661298,8.42662321,4160.2,4160.1,0.002]
[1759237662222,8.54662321,4160.2,4160.1,0.002]
[1759237663883,8.42433058,4160.2,4160.1,0.002]
[1759237664413,8.30433058,4160.2,4160.1,0.002]
[1759237665108,8.81850756,4160.2,4160.1,0.002]
[1759237665677,8.30433058,4160.2,4160.1,0.002]
[1759237669360,8.81839194,4160.2,4160.1,0.002]
[1759237669649,11.33569737,4160.2,4160.1,0.002]
[1759237670512,21.88730178,4159.7,4159.6,1e-08]
[1759237670709,25.19436314,4159.7,4159.6,1e-08]
[1759237670908,25.91756314,4159.7,4159.6,1e-08]
[1759237672156,26.77391276,4159.7,4159.6,1e-08]
[1759237672454,28.31486857,4159.7,4159.6,1e-08]
[1759237673049,29.59965392,4159.7,4159.6,1e-08]
[1759237673210,28.31486857,4159.7,4159.6,1e-08]
[1759237675263,29.28611732,4159.7,4159.6,1e-08]
[1759237675836,30.00948561,4159.7,4159.6,1e-08]
[1759237676366,29.15630924,4159.7,4159.6,1e-08]
[1759237676853,28.43294095,4159.7,4159.6,1e-08]
[1759237679865,27.70974095,4159.7,4159.6,1e-08]
[1759237680166,28.43294095,4159.7,4159.6,1e-08]
[1759237680540,28.55294095,4159.7,4159.6,1e-08]
[1759237681669,2.40419291,4159.4,4159.3,0.002]
[1759237681981,7.71419291,4159.4,4159.3,0.002]
[1759237682184,8.43739291,4159.4,4159.3,0.002]
[1759237682360,8.35665427,4159.4,4159.3,0.002]
[1759237682562,8.95145427,4159.4,4159.3,0.002]
[1759237682876,11.3487597,4159.4,4159.3,0.002]
[1759237683777,2.40430852,4159.2,4159.1,1e-08]
[1759237684076,7.59430852,4159.2,4159.1,1e-08]
[1759237684318,8.10836988,4159.2,4159.1,1e-08]
[1759237684482,8.83156988,4159.2,4159.1,1e-08]
[1759237684694,10.20688248,4159.2,4159.1,1e-08]
[1759237684980,9.48368248,4159.2,4159.1,1e-08]
[1759237685157,9.73208248,4159.2,4159.1,1e-08]
[1759237685751,9.48368248,4159.2,4159.1,1e-08]
[1759237686364,14.9892822,4159.2,4159.1,1e-08]
[1759237687553,9.48368248,4159.2,4159.1,1e-08]
[1759237688382,9.73208248,4159.2,4159.1,1e-08]
[1759237688764,9.48368248,4159.2,4159.1,1e-08]
[1759237689190,6.81165272,4159.2,4159.1,1e-08]
[1759237689494,8.22434012,4159.2,4159.1,0.43430001]
[1759237690209,8.22434012,4159.2,4159.1,1e-08]
[1759237690502,8.94754012,4159.2,4159.1,1e-08]
[1759237690878,8.22434012,4159.2,4159.1,1e-08]
[1759237691183,9.88423917,4159.2,4159.1,1e-08]
[1759237692473,6.97926893,4159.2,4159.1,0.61290001]
[1759237692689,8.10636988,4159.2,4159.1,0.61290001]
[1759237692884,5.70636988,4159.2,4159.1,0.61290001]
[1759237693086,5.19230852,4159.2,4159.1,0.61290001]
[1759237693292,5.19230852,4159.2,4159.1,1e-08]
[1759237694311,7.59230852,4159.2,4159.1,1e-08]
[1759237694468,8.10583928,4159.2,4159.1,1e-08]
[1759237694671,8.57000203,4159.2,4159.1,1e-08]
[1759237695215,8.79580203,4159.2,4159.1,1e-08]
[1759237695420,9.23270203,4159.2,4159.1,1e-08]
[1759237697447,10.0858784,4159.2,4159.1,1e-08]
[1759237698307,9.23270203,4159.2,4159.1,1e-08]
[1759237699310,10.63748738,4159.2,4159.1,1e-08]
[1759237700095,10.51748738,4159.2,4159.1,1e-08]
[1759237700291,4.80494456,4158.1,4158.0,14.5]
[1759237700527,4.80494456,4158.1,4157.4,0.79401303]
[1759237700528,5.69953076,4158.1,4157.4,0.00201303]
[1759237700738,2.40529164,4157.5,4157.4,0.63641303]
[1759237700945,2.40529164,4157.5,4157.4,1.42841303]
[1759237701234,2.40529164,4157.5,4157.4,15.92841303]
[1759237702111,0.51353076,4157.7,4157.4,15.92841303]
[1759237702322,0.51353076,4157.7,4157.5,1.4264]
[1759237702522,5.18902517,4158.0,4157.7,0.792]
[1759237702701,0.51353076,4158.1,4157.8,0.6344]
[1759237702904,0.51353076,4158.1,4157.9,0.6344]
[1759237702905,2.91851054,4158.1,4157.9,0.6344]
[1759237703220,2.91851054,4158.1,4158.0,0.6344]
[1759237703405,2.40497978,4158.1,4158.0,0.6344]
[1759237703622,3.29753076,4158.2,4158.0,0.6344]
[1759237703825,0.51353076,4158.3,4158.1,0.6344]
[1759237704017,0.51353076,4158.7,4158.2,0.6344]
[1759237704218,2.40476315,4158.5,4158.3,0.6344]
[1759237704427,3.29753076,4158.6,4157.8,0.792]
[1759237704428,0.51353076,4158.4,4157.8,0.792]
[1759237704626,2.784,4158.7,4158.4,0.792]
[1759237704831,2.40471323,4158.5,4158.4,0.792]
[1759237705027,2.91824399,4158.5,4158.4,1.4264]
[1759237705254,2.40471323,4158.5,4158.4,1.4264]
[1759237705423,2.91824399,4158.5,4158.4,1.4264]
[1759237705619,2.40477106,4158.4,4158.3,14.5]
[1759237705923,2.91830182,4158.4,4158.3,14.5]
[1759237706637,2.91830182,4158.4,4158.3,14.9592]
[1759237707338,2.91830182,4158.4,4158.3,14.5]
[1759237709419,5.18677106,4158.4,4158.3,15.1344]
[1759237711050,2.782,4158.4,4158.3,15.1344]
[1759237711259,2.40477106,4158.4,4158.3,15.1344]
[1759237711755,0.51353076,4158.5,4158.4,0.792]
[1759237711942,2.91801237,4159.0,4158.4,1.4264]
[1759237712143,2.91801237,4159.0,4158.6,0.792]
[1759237712344,0.51353076,4159.1,4159.0,0.792]
[1759237712549,2.40413511,4159.5,4159.0,1.4264]
[1759237712761,2.40420607,4159.4,4159.2,0.792]
[1759237712967,2.782,4159.6,4159.2,0.792]
[1759237712968,2.4041754,4159.5,4159.4,0.792]
[1759237713181,2.782,4159.6,4159.4,0.792]
[1759237713328,2.40413511,4159.5,4159.4,0.792]
[1759237713528,2.40413511,4159.5,4159.2,0.1752]
[1759237713759,2.40419291,4159.4,4159.1,0.792]
[1759237713970,3.0117,4159.6,4159.0,0.792]
[1759237714233,2.40436632,4159.1,4159.0,0.792]
[1759237714442,2.40436632,4159.1,4159.0,1.2512]
[1759237714816,0.51493972,4159.4,4159.0,15.95044424]
[1759237715062,2.40436632,4159.1,4159.0,15.292]
[1759237715258,2.40436632,4159.1,4159.0,14.5]
[1759237717045,2.40436632,4159.1,4159.0,14.9592]
[1759237717445,2.40436632,4159.1,4159.0,14.5]
[1759237718165,2.786,4159.2,4159.0,14.5]
[1759237718372,2.63388197,4159.5,4159.1,0.6344]
[1759237718373,3.29947688,4159.5,4159.1,0.6344]
[1759237718574,2.40423299,4159.4,4159.2,0.6344]
[1759237718746,2.785,4159.5,4159.2,0.4592]
[1759237719076,2.785,4159.5,4159.3,1.4264]
[1759237719229,0.001,4159.7,4159.5,0.792]
[1759237719675,0.001,4159.7,4159.6,1.2512]
[1759237719878,0.001,4159.7,4159.6,1.4264]
[1759237720577,0.001,4159.7,4159.6,18.33047731]
[1759237721087,0.001,4159.7,4159.6,15.9264]
[1759237721486,0.001,4159.7,4159.6,20.68245292]
[1759237722586,0.001,4159.7,4159.6,18.39837561]
[1759237723091,0.001,4159.7,4159.6,20.80245292]
[1759237724606,0.001,4159.7,4159.6,23.58545292]
[1759237731316,0.001,4159.7,4159.6,23.68182441]
[1759237731973,0.001,4159.7,4159.6,20.89882441]
[1759237732174,0.001,4159.7,4159.6,23.67682441]
[1759237733436,0.001,4159.7,4159.6,26.07682441]
[1759237733706,0.001,4159.7,4159.6,25.95682441]
[1759237737933,0.001,4159.7,4159.6,22.54442441]
[1759237738235,0.001,4159.7,4159.6,16.90407731]
[1759237738527,0.001,4159.7,4159.6,19.67907731]
[1759237738729,0.001,4159.7,4159.6,20.47107731]
[1759237738931,0.001,4159.7,4159.6,19.67907731]
[1759237739436,0.001,4159.7,4159.6,16.90407731]
[1759237739585,0.001,4159.7,4159.6,20.47107731]
[1759237740486,0.001,4159.7,4159.6,23.40474184]
[1759237742397,0.001,4159.7,4159.6,23.50111542]
[1759237743428,0.001,4159.7,4159.6,25.90111542]
[1759237743755,0.001,4159.7,4159.6,26.02111542]
[1759237744091,0.001,4159.7,4159.6,22.60961542]
[1759237744291,0.001,4159.7,4159.6,25.38361542]
[1759237745492,0.001,4159.7,4159.6,26.02011542]
[1759237750231,0.001,4160.2,4160.1,3.19578837]
[1759237750437,0.001,4160.2,4160.1,6.52675345]
[1759237750611,0.001,4160.2,4160.1,7.16325345]
[1759237750796,0.001,4160.2,4160.1,21.78325345]
[1759237750998,0.001,4160.2,4160.1,18.47210405]
[1759237751198,0.6974,4160.2,4160.1,18.47210405]
[1759237751531,0.6974,4160.2,4160.1,23.64310405]
[1759237752144,0.001,4160.2,4160.1,23.64310405]
[1759237752643,0.001,4160.2,4160.1,24.07260405]
[1759237753013,0.001,4160.2,4160.1,24.24780405]
[1759237755130,0.001,4160.3,4160.2,5.59573058]
[1759237755328,0.001,4160.3,4160.2,8.53966825]
[1759237755532,0.001,4160.3,4160.2,10.70596825]
[1759237755729,0.001,4160.3,4160.2,25.20596825]
[1759237757838,0.001,4160.3,4160.2,25.63466825]
[1759237758056,0.001,4160.3,4160.2,25.80986825]
[1759237759463,0.001,4160.3,4160.2,25.9062091]
[1759237762568,1e-08,4160.9,4160.8,3.19538396]
[1759237762870,1e-08,4160.9,4160.8,8.92634904]
[1759237763237,1e-08,4160.9,4160.8,23.5226827]
[1759237766859,1e-08,4160.9,4160.8,23.5216827]
[1759237768663,0.67500001,4160.9,4160.8,23.5216827]
[1759237769533,0.24210001,4160.9,4160.8,23.5216827]
[1759237769943,1e-08,4160.9,4160.8,23.5216827]
[1759237771452,0.24210001,4160.9,4160.8,23.5216827]
[1759237772079,1e-08,4160.9,4160.8,23.5216827]
[1759237772513,1e-08,4160.9,4160.8,23.6416827]
[1759237773597,1e-08,4160.9,4160.8,20.8716827]
[1759237773766,1e-08,4160.9,4160.8,23.6416827]
[1759237777699,0.24210001,4160.9,4160.8,23.6416827]
[1759237778780,1e-08,4160.9,4160.8,23.6416827]
[1759237783987,0.22580001,4160.9,4160.8,23.6416827]
[1759237787234,1e-08,4160.9,4160.8,23.6416827]
[1759237788021,0.22580001,4160.9,4160.8,23.6416827]
[1759237788716,0.4496,4161.1,4161.0,5.59526844]
[1759237788914,0.4496,4161.1,4161.0,10.70450611]
[1759237789314,0.4496,4161.1,4161.0,8.36526844]
[1759237789634,0.4496,4161.1,4161.0,22.86526844]
[1759237790813,0.6754,4161.1,4161.0,22.86526844]
[1759237794415,0.2268,4161.1,4161.0,22.86526844]
[1759237795419,0.001,4161.1,4161.0,22.86526844]
[1759237795620,0.001,4161.1,4161.0,25.26257387]
[1759237795833,0.2268,4161.1,4161.0,25.26257387]
[1759237800172,0.6754,4161.1,4161.0,25.26257387]
[1759237800454,0.6754,4161.1,4161.0,15.292]
[1759237800760,0.6754,4161.1,4161.0,20.46426844]
[1759237801132,0.001,4161.1,4161.0,20.46426844]
[1759237801445,0.6754,4161.1,4161.0,20.46426844]
[1759237804264,0.6754,4161.1,4161.0,17.69526844]
[1759237804978,0.001,4161.1,4161.0,25.11213217]
[1759237805255,0.001,4161.1,4161.0,26.22013217]
[1759237808451,0.001,4161.1,4161.0,23.45113217]
[1759237808764,0.001,4161.1,4161.0,26.21913217]
[1759237810069,0.001,4161.1,4161.0,22.79253217]
[1759237810267,0.001,4161.1,4161.0,25.56053217]
[1759237810456,0.001,4161.1,4161.0,25.78653217]
[1759237810645,0.001,4161.1,4161.0,26.21913217]
[1759237811658,0.001,4161.1,4161.0,25.78653217]
[1759237812369,0.001,4161.1,4161.0,26.23183217]
[1759237813087,0.001,4161.1,4161.0,23.46383217]
[1759237813386,0.001,4161.1,4161.0,26.23183217]
[1759237814781,0.001,4161.1,4161.0,26.35183217]
[1759237814983,0.001,4161.8,4161.7,3.19486421]
[1759237815182,0.001,4161.8,4161.7,8.68235063]
[1759237815384,0.001,4161.8,4161.7,8.92855063]
[1759237815593,0.001,4161.8,4161.7,23.42855063]
[1759237815770,0.001,4161.8,4161.7,23.66555063]
[1759237815971,0.001,4161.8,4161.7,24.11085063]
[1759237816560,0.51600776,4164.2,4161.7,24.11085063]
[1759237816561,0.237,4163.0,4161.9,3.19474874]
[1759237816761,0.237,4163.0,4161.9,8.92060134]
[1759237817065,0.237,4163.0,4161.9,9.63220134]
[1759237817252,0.2286,4162.8,4161.9,24.13220134]
[1759237817454,0.2286,4162.7,4161.9,24.57240134]
[1759237817654,0.2286,4162.6,4161.9,24.10550134]
[1759237817887,0.2286,4162.6,4161.9,24.57240134]
[1759237818072,0.2286,4162.9,4161.9,24.57240134]
[1759237818282,0.4604,4163.3,4161.9,24.57240134]
[1759237818585,0.2286,4163.1,4161.9,24.57240134]
[1759237818793,0.2286,4163.1,4163.0,2.40211386]
[1759237818968,0.689,4163.3,4163.1,0.792]
[1759237819294,0.001,4164.3,4163.7,3.19370464]
[1759237819452,0.001,4164.3,4163.9,0.792]
[1759237819784,0.689,4164.2,4164.1,0.792]
[1759237820120,0.689,4164.2,4164.1,3.559]
[1759237820388,0.689,4164.2,4164.1,18.059]
[1759237820772,0.689,4164.2,4164.1,20.46047931]
[1759237821158,0.001,4164.8,4164.1,22.4806196]
[1759237821367,0.001,4165.2,4164.2,4.33396079]
[1759237821558,0.001,4165.2,4164.8,3.192]
[1759237821790,0.001,4165.2,4165.1,17.69290273]
[1759237821952,0.001,4165.2,4165.1,20.48190273]
[1759237822152,0.001,4165.2,4165.1,20.80138915]
[1759237822358,0.001,4165.2,4165.1,18.01238915]
[1759237822578,0.2296,4165.2,4165.1,18.01238915]
[1759237822792,0.69,4165.2,4165.1,18.73419973]
[1759237823095,0.69,4165.2,4165.1,21.20271331]
[1759237825114,0.2296,4165.2,4165.1,21.32271331]
[1759237825805,0.2296,4165.2,4165.1,21.32171331]
[1759237826216,0.69,4165.2,4165.1,21.32171331]
[1759237826388,0.2296,4165.2,4165.1,21.32171331]
[1759237826718,0.2296,4165.2,4165.1,22.19905233]
[1759237826918,0.69,4165.2,4165.1,22.19905233]
[1759237827097,0.69,4165.2,4165.1,22.19805233]
[1759237827298,0.69,4165.2,4165.1,27.68221721]
[1759237827499,0.69,4165.2,4165.1,27.68121721]
[1759237827694,0.10398995,4165.2,4165.1,27.68121721]
[1759237827911,0.4604,4165.5,4165.4,3.19272982]
[1759237828108,32.072457,4166.8,4165.9,0.792]
[1759237828302,32.072457,4166.8,4166.2,0.792]
[1759237828503,32.072457,4166.8,4166.6,0.12]
[1759237828689,32.072457,4166.8,4166.7,2.784]
[1759237829185,32.532857,4166.8,4166.7,2.784]
[1759237829387,2.3999808,4166.7,4166.6,0.12]
[1759237829586,2.3999808,4166.7,4166.5,14.5]
[1759237829587,2.4000384,4166.6,4166.5,17.284]
[1759237829901,3.0890384,4166.6,4166.5,17.284]
[1759237830514,3.0890384,4166.6,4166.5,14.5]
[1759237831011,0.689,4166.6,4166.5,14.5]
[1759237831416,3.0890384,4166.6,4166.5,14.5]
[1759237831824,0.689,4166.6,4166.5,14.5]
[1759237832028,3.0890384,4166.6,4166.5,14.5]
[1759237832729,3.0890384,4166.6,4166.3,2.903]
[1759237832929,0.689,4166.5,4166.3,2.903]
[1759237833126,0.689,4166.5,4166.4,0.792]
[1759237833333,2.39999741,4166.7,4166.4,15.292]
[1759237833504,2.40005118,4166.6,4166.4,15.292]
[1759237833825,34.46976243,4166.8,4166.4,15.292]
[1759237834021,36.86969959,4166.8,4166.5,2.781]
[1759237834220,34.46976243,4166.8,4166.5,2.781]
[1759237834416,2.4000384,4166.6,4166.5,3.573]
[1759237834632,2.4000384,4166.6,4166.5,18.073]
[1759237834930,3.0890384,4166.6,4166.5,15.292]
[1759237836323,0.689,4166.6,4166.5,15.292]
[1759237837531,0.689,4166.6,4166.5,18.072]
[1759237837732,3.0890384,4166.6,4166.5,18.072]
[1759237838700,5.48634383,4166.6,4166.5,14.5]
[1759237838910,10.97050871,4166.6,4166.5,14.5]
[1759237839229,5.48634383,4166.6,4166.5,14.5]
[1759237840955,3.0890384,4166.6,4166.5,14.5]
[1759237841116,0.689,4166.6,4166.5,14.5]
[1759237841319,0.2286,4166.6,4166.5,15.292]
[1759237841545,0.2286,4166.6,4166.5,18.068]
[1759237841853,34.47238609,4166.8,4166.5,3.568]
[1759237842035,0.2286,4166.7,4166.5,3.568]
[1759237842210,0.6968,4166.6,4166.5,3.568]
[1759237842407,0.6968,4166.6,4166.5,18.068]
[1759237843930,3.0968384,4166.6,4166.5,18.068]
[1759237844114,32.072457,4166.8,4166.6,0.792]
[1759237844328,32.072457,4166.8,4166.7,3.687]
[1759237844547,32.072457,4166.8,4166.7,3.686]
[1759237844548,32.308857,4166.8,4166.7,3.686]
[1759237844844,35.1388802,4166.8,4166.7,3.686]
[1759237845352,32.738957,4166.8,4166.7,3.686]
[1759237845642,32.072457,4166.8,4166.7,3.686]
[1759237846248,35.1388802,4166.8,4166.7,3.686]
[1759237846451,32.738957,4166.8,4166.7,3.686]
[1759237846658,32.308857,4166.8,4166.7,3.686]
[1759237846956,32.072457,4166.8,4166.7,3.9263]
[1759237847659,32.072457,4166.8,4166.7,1.1523]
[1759237847824,32.072457,4166.8,4166.7,18.4263]
[1759237848624,32.072457,4166.8,4166.7,20.4659808]
[1759237848824,32.072457,4166.8,4166.7,21.1810808]
[1759237849025,32.072457,4166.8,4166.7,22.7225143]
[1759237849330,32.072457,4166.8,4166.7,19.8477335]
[1759237849557,32.072457,4166.8,4166.7,22.2467143]
[1759237849870,32.072457,4166.8,4166.7,22.7215143]
[1759237850823,32.072457,4166.8,4166.7,22.7205143]
[1759237852331,32.072457,4166.8,4166.7,25.1205143]
[1759237856084,0.001,4167.1,4167.0,5.59180801]
[1759237856284,0.001,4167.1,4167.0,9.24014703]
[1759237856451,0.001,4167.1,4167.0,9.48044703]
[1759237856788,0.001,4167.1,4167.0,23.98044703]
[1759237857373,0.001,4167.1,4167.0,18.56933902]
[1759237857572,0.6675,4167.1,4167.0,15.292]
[1759237857780,0.6675,4167.1,4167.0,14.5]
[1759237857985,0.6675,4167.1,4167.0,17.286]
[1759237858477,0.6675,4167.1,4167.0,18.078]
[1759237858683,0.6675,4167.1,4167.0,17.406]
[1759237858879,3.06725042,4167.1,4167.0,17.406]
[1759237859083,3.61403421,4167.1,4167.0,14.62]
[1759237859251,3.61403421,4167.1,4167.0,17.406]
[1759237860185,1.21428379,4167.1,4167.0,17.406]
[1759237860493,3.61403421,4167.1,4167.0,17.406]
[1759237860871,1.21428379,4167.1,4167.0,17.406]
[1759237861073,3.61403421,4167.1,4167.0,17.406]
[1759237861272,3.61403421,4167.1,4167.0,14.62]
[1759237862517,2.63715042,4167.1,4167.0,14.62]
[1759237862812,3.06725042,4167.1,4167.0,14.62]
[1759237864081,3.06725042,4167.1,4166.1,0.48160271]
[1759237864082,2.400096,4166.5,4166.4,0.12]
[1759237864276,2.4001536,4166.4,4166.3,2.785]
[1759237864502,2.39988248,4166.9,4166.4,0.792]
[1759237864822,0.4311,4167.1,4166.9,0.12]
[1759237865021,0.001,4167.1,4167.0,3.578]
[1759237865312,0.001,4167.1,4167.0,3.60199808]
[1759237865516,0.001,4167.1,4167.0,1.17622981]